bitfinex/quotes_ETHUSD_20220731
["timestamp","ask_amount","ask_price","bid_price","bid_amount"]
[1659309279085,8.4681152,1679.0,1678.4,1.83271801]
[1659309279086,8.1704,1679.0,1678.4,1.83271801]
[1659309279651,9.84062294,1679.0,1678.4,0.34425801]
[1659309279890,10.13834434,1679.0,1678.4,0.34425801]
[1659309281571,10.43609434,1679.0,1678.4,0.34425801]
[1659309282053,0.29777,1678.9,1678.4,0.34425801]
[1659309282494,0.7440658,1678.8,1678.2,0.05]
[1659309282791,0.49783,1678.7,1678.2,2.89804672]
[1659309283000,0.79783,1678.7,1678.2,2.89804672]
[1659309283171,1.7870996,1678.6,1678.0,8.92314672]
[1659309283378,1.7870996,1678.6,1678.0,5.61914672]
[1659309283686,1.7870996,1678.6,1678.0,5.96340473]
[1659309283897,0.2978499,1678.6,1678.0,7.45232473]
[1659309284561,0.55,1678.7,1678.0,7.45232473]
[1659309284763,0.2,1678.7,1678.0,7.45232473]
[1659309285213,0.2977755,1678.6,1678.0,10.72764473]
[1659309285502,0.2977755,1678.6,1678.2,1.48878]
[1659309285688,0.35,1678.7,1678.3,2.89804672]
[1659309285689,0.3,1678.7,1678.3,2.89804672]
[1659309285872,1.897744,1678.8,1678.3,2.89804672]
[1659309286073,1.897744,1678.8,1678.3,4.38675672]
[1659309287275,1.897744,1678.8,1678.3,2.89804672]
[1659309287770,1.897744,1678.8,1678.2,3.24230473]
[1659309288100,1.897744,1678.8,1678.3,1.48875]
[1659309288364,0.29779,1678.7,1678.2,3.24230473]
[1659309288564,0.2977872,1678.6,1678.2,3.24230473]
[1659309288932,0.5977872,1678.6,1678.2,3.24230473]
[1659309289426,0.5977872,1678.6,1678.2,4.73112473]
[1659309290228,0.5977872,1678.6,1678.2,3.24230473]
[1659309290564,3.83138535,1678.6,1678.1,3.3676]
[1659309290724,3.83138535,1678.6,1678.0,2.7211]
[1659309291238,3.83138535,1678.6,1678.0,3.06535801]
[1659309291757,3.83138535,1678.6,1678.0,4.55429801]
[1659309291990,0.5977872,1678.6,1678.1,2.89804672]
[1659309292284,0.3,1678.6,1678.2,1.48878]
[1659309292493,0.3,1678.6,1678.2,4.38682672]
[1659309292657,8.2303,1678.8,1678.2,4.38682672]
[1659309292988,8.2303,1678.8,1678.2,4.73108473]
[1659309293204,0.2977634,1678.6,1678.2,4.73108473]
[1659309293353,0.5977634,1678.6,1678.2,4.73108473]
[1659309293877,1.95301794,1678.6,1677.9,8.1558]
[1659309294086,1.95301794,1678.6,1677.9,11.00384672]
[1659309294471,0.2,1678.5,1677.9,12.49291672]
[1659309294668,0.7978132,1678.5,1677.9,12.49291672]
[1659309294869,1.0978132,1678.5,1677.9,12.49291672]
[1659309295271,1.0978132,1678.5,1677.9,12.79070672]
[1659309295472,1.0978132,1678.5,1677.9,9.89266]
[1659309295669,1.5442132,1678.5,1677.9,8.1058]
[1659309295877,1.5442132,1678.5,1677.9,8.45005801]
[1659309296105,1.8420332,1678.5,1677.9,8.45005801]
[1659309296423,1.0464,1678.5,1677.9,13.13499473]
[1659309296718,1.0464,1678.5,1677.9,13.49206263]
[1659309296917,1.0464,1678.5,1678.0,0.29773]
[1659309297072,0.6,1678.5,1678.1,0.29774]
[1659309297706,0.6,1678.5,1678.2,4.46595]
[1659309297910,0.6,1678.5,1678.2,4.76367]
[1659309298095,0.3,1678.5,1678.3,1.48864]
[1659309298718,0.7464,1678.6,1678.3,1.48864]
[1659309298719,1.0464,1678.6,1678.3,1.48864]
[1659309299081,0.6,1678.6,1678.3,1.48864]
[1659309299316,0.3,1678.6,1678.3,1.48864]
[1659309300790,0.2977453,1678.7,1678.3,1.48864]
[1659309301029,3.30764416,1678.8,1678.3,1.48864]
[1659309301325,3.30764416,1678.8,1678.1,0.39425801]
[1659309301326,0.2977733,1678.6,1678.1,0.39425801]
[1659309301540,0.5977733,1678.6,1678.1,0.34425801]
[1659309302502,0.5977733,1678.6,1678.1,2.13099801]
[1659309302891,0.5977733,1678.6,1678.1,0.64201801]
[1659309303497,0.5977733,1678.6,1678.2,1.48884]
[1659309303498,0.3,1678.6,1678.2,1.48884]
[1659309303934,0.3,1678.6,1678.2,1.48581596]
[1659309304640,0.3,1678.6,1678.3,1.48863]
[1659309304947,5.1828,1678.8,1678.3,1.48863]
[1659309305146,2.344055,1678.8,1678.3,1.48863]
[1659309305298,5.344055,1678.8,1678.3,1.48863]
[1659309306759,5.641825,1678.8,1678.3,1.48863]
[1659309308484,5.641825,1678.8,1678.1,3.37183801]
[1659309308658,9.112325,1678.8,1678.2,1.48891]
[1659309309483,0.29153227,1678.3,1678.2,1.48891]
[1659309312530,0.29153227,1678.3,1678.0,3.6125]
[1659309312695,0.88937537,1678.3,1678.0,3.6125]
[1659309312895,0.59153227,1678.3,1677.9,11.00384672]
[1659309313096,0.58938547,1678.3,1677.9,11.00384672]
[1659309313531,0.88938547,1678.3,1677.9,11.00384672]
[1659309314853,0.05,1678.5,1678.2,2.89804672]
[1659309315152,3.0986,1679.3,1678.4,1.144]
[1659309315308,3.5448,1679.3,1678.5,2.89804672]
[1659309315508,3.5448,1679.3,1678.5,4.38646672]
[1659309315707,3.0986,1679.3,1678.6,0.34425801]
[1659309315909,1.0,1679.2,1678.6,0.34425801]
[1659309316347,4.1463,1679.1,1678.4,0.05]
[1659309316553,3.5,1679.0,1678.3,0.05]
[1659309316846,0.2,1678.8,1678.2,0.05]
[1659309317157,4.0,1678.8,1678.0,17.0054]
[1659309317451,4.0,1678.8,1678.0,19.85344672]
[1659309317601,2.89804672,1678.7,1678.0,16.9554]
[1659309318042,2.89804672,1678.7,1678.0,13.8975]
[1659309318043,3.19804672,1678.7,1678.0,13.8975]
[1659309318424,0.3,1678.7,1678.1,3.24230473]
[1659309318609,3.3269,1678.8,1678.1,3.24230473]
[1659309318814,3.3269,1678.8,1678.1,3.41828909]
[1659309320620,3.3269,1678.8,1678.1,4.90704909]
[1659309322651,6.22494672,1678.8,1678.1,2.30676237]
[1659309322852,6.67124672,1678.8,1678.3,1.48878]
[1659309323969,6.22494672,1678.8,1678.3,1.78651]
[1659309324169,6.22494672,1678.8,1678.4,1.48875]
[1659309324376,0.3,1678.8,1678.5,0.29771]
[1659309324700,14.81732519,1678.9,1678.4,1.48875]
[1659309324852,17.71537191,1678.9,1678.4,1.48875]
[1659309325054,18.01313741,1678.9,1678.4,1.48875]
[1659309326493,0.3,1678.8,1678.4,1.48875]
[1659309326867,19.57892078,1678.9,1678.4,1.48875]
[1659309327970,19.28115528,1678.9,1678.4,1.48875]
[1659309328183,19.57892448,1678.9,1678.4,1.48875]
[1659309329486,19.28115528,1678.9,1678.4,1.48875]
[1659309330497,19.57890728,1678.9,1678.4,1.48875]
[1659309331270,14.81732519,1678.9,1678.4,1.48875]
[1659309331575,8.8083,1678.9,1678.5,0.29772]
[1659309331757,8.8083,1678.9,1678.6,1.48865]
[1659309331958,0.6,1678.9,1678.6,1.48865]
[1659309332209,3.3,1678.9,1678.6,1.48865]
[1659309332619,0.3,1678.9,1678.6,1.48865]
[1659309332770,0.3,1678.9,1678.7,0.34425801]
[1659309333199,9.7296,1679.1,1678.7,1.83248801]
[1659309333477,3.4557,1679.1,1678.7,1.83248801]
[1659309333629,3.4557,1679.1,1678.4,0.05]
[1659309333630,0.2,1678.8,1678.4,0.05]
[1659309333807,0.2,1678.6,1678.1,3.91629439]
[1659309334013,4.24804672,1678.8,1678.0,10.9303]
[1659309334220,7.35464672,1678.8,1678.0,13.82834672]
[1659309334597,14.98544672,1678.8,1678.1,0.34425801]
[1659309335584,21.45311937,1678.8,1678.1,0.34425801]
[1659309336104,21.45311937,1678.8,1678.1,1.83308801]
[1659309336307,0.2,1678.7,1678.1,1.83308801]
[1659309336625,21.45311937,1678.8,1678.2,2.89804672]
[1659309336626,12.0874,1678.8,1678.2,2.89804672]
[1659309336924,1.0,1678.8,1678.3,0.34425801]
[1659309337082,1.0,1678.8,1678.4,2.89804672]
[1659309337282,0.05,1679.0,1678.5,1.2035248]
[1659309337481,3.1317,1679.1,1678.6,1.48812]
[1659309337723,3.1317,1679.1,1678.6,1.83237801]
[1659309337894,3.1317,1679.1,1678.6,2.00836237]
[1659309338098,2.89804672,1679.1,1678.6,2.00836237]
[1659309338300,3.09804672,1679.0,1678.4,10.6427]
[1659309338528,3.09804672,1679.0,1678.4,10.5927]
[1659309338728,0.2,1678.7,1678.4,10.5927]
[1659309339302,0.3,1678.9,1678.4,17.95622672]
[1659309339637,8.0805,1679.1,1678.5,0.34425801]
[1659309339638,8.4305,1679.1,1678.5,0.34425801]
[1659309339834,8.3805,1679.1,1678.6,1.48835]
[1659309340407,8.3805,1679.1,1678.6,1.78602]
[1659309340656,8.3805,1679.1,1678.7,1.48843]
[1659309341246,0.6,1679.1,1678.7,1.48843]
[1659309341448,0.3,1679.1,1678.7,1.48843]
[1659309341664,3.7462,1679.2,1678.7,1.48843]
[1659309341665,4.0462,1679.2,1678.7,1.48843]
[1659309342122,3.8976953,1679.2,1678.7,1.48843]
[1659309342323,3.6,1679.2,1678.7,1.48843]
[1659309342523,3.6,1679.2,1678.7,1.78611]
[1659309342832,3.6,1679.2,1678.8,1.48841]
[1659309343547,3.8977002,1679.2,1678.8,1.48841]
[1659309344631,0.2977002,1679.2,1678.8,1.48841]
[1659309344836,6.7752,1679.3,1678.8,1.48841]
[1659309345037,6.7752,1679.3,1678.8,1.78605]
[1659309345265,6.7752,1679.3,1679.0,1.48827]
[1659309345483,1.0,1679.3,1679.0,1.48827]
[1659309345635,1.0,1679.3,1678.8,1.48841]
[1659309346265,1.8977,1679.3,1678.6,3.02701]
[1659309346489,1.8977,1679.3,1678.6,5.87505672]
[1659309346716,1.8977,1679.3,1678.6,6.17274672]
[1659309347201,4.4501,1679.3,1678.6,6.51700473]
[1659309347406,4.4501,1679.3,1678.7,1.78621]
[1659309347590,4.7477745,1679.3,1678.7,1.78621]
[1659309348918,4.7477745,1679.3,1678.9,1.48837]
[1659309349355,0.2976893,1679.2,1678.8,1.48843]
[1659309349567,0.2976893,1679.2,1678.7,1.48854]
[1659309349734,4.4501,1679.3,1678.8,6.21885473]
[1659309349918,4.4501,1679.3,1678.9,1.5479071]
[1659309349919,1.3,1679.3,1678.9,1.5479071]
[1659309350121,1.3,1679.3,1678.9,1.48839]
[1659309350355,1.0,1679.3,1679.0,1.48801]
[1659309350554,1.0,1679.3,1679.1,1.78563]
[1659309350764,1.3,1679.3,1679.1,3.27361]
[1659309350979,1.3,1679.3,1678.9,1.48825]
[1659309351271,1.3,1679.3,1678.9,0.29766]
[1659309352150,1.3,1679.3,1678.9,0.6547964]
[1659309352354,1.3,1679.3,1678.9,2.1429264]
[1659309352557,1.3,1679.3,1678.9,2.1429242]
[1659309352755,1.3,1679.3,1679.0,0.29762]
[1659309352926,1.3,1679.3,1679.0,1.78575]
[1659309353129,0.05,1679.6,1679.1,2.89804672]
[1659309353327,0.05,1679.8,1679.3,1.136]
[1659309353629,0.35,1680.0,1679.5,1.144]
[1659309353981,0.35,1680.0,1679.6,3.53974473]
[1659309353982,0.3,1680.0,1679.6,3.53974473]
[1659309354125,0.3,1680.0,1679.6,3.71572909]
[1659309354479,0.3,1680.0,1679.7,0.17598436]
[1659309354644,0.3,1680.0,1679.6,3.53974473]
[1659309355045,0.3,1680.0,1679.6,0.34425801]
[1659309355250,0.3,1680.0,1679.3,13.8942]
[1659309355573,0.3,1680.0,1679.3,16.74224672]
[1659309355780,0.3,1680.0,1679.3,17.08650473]
[1659309355935,0.2,1679.9,1679.3,17.08650473]
[1659309356774,0.2,1679.9,1679.4,2.89804672]
[1659309356929,0.2,1679.9,1679.5,0.34425801]
[1659309357129,0.6,1680.0,1679.5,3.24230473]
[1659309357366,0.6,1680.0,1679.5,3.5422651]
[1659309358236,0.8,1680.0,1679.5,3.2447651]
[1659309358951,0.6,1680.0,1679.5,3.2447651]
[1659309359159,0.59660288,1680.0,1679.5,3.2447651]
[1659309359538,0.59660288,1680.0,1679.5,3.5423051]
[1659309360220,0.59660288,1680.0,1679.6,1.78508]
[1659309361482,0.59660288,1680.0,1679.6,0.29752]
[1659309362729,0.59660288,1680.0,1679.3,18.65451]
[1659309362730,0.2,1679.9,1679.3,13.8942]
[1659309363011,3.5,1679.9,1679.3,13.74264672]
[1659309363224,3.8,1679.9,1679.3,13.74264672]
[1659309363368,3.8,1679.9,1679.3,10.60144672]
[1659309363572,0.2,1679.8,1679.3,10.60144672]
[1659309364208,0.2,1679.8,1679.3,10.94570473]
[1659309364400,4.15,1680.0,1679.3,10.94570473]
[1659309364573,3.9,1680.0,1679.3,10.94570473]
[1659309364789,3.9,1680.0,1679.4,0.00246051]
[1659309366296,3.9,1680.0,1679.4,1.49016051]
[1659309366791,3.9,1680.0,1679.5,0.29754]
[1659309366792,6.79804672,1680.0,1679.5,0.29754]
[1659309367385,0.3,1680.0,1679.5,2.89804672]
[1659309367582,0.3,1680.0,1679.7,1.144]
[1659309367810,0.3,1680.0,1679.7,4.04204672]
[1659309368028,0.05,1680.3,1679.8,6.57403108]
[1659309368233,0.05,1680.5,1679.9,10.87830473]
[1659309368406,12.72,1680.7,1680.2,1.136]
[1659309368407,0.05,1680.7,1680.2,1.136]
[1659309368624,0.05,1680.9,1680.3,2.89804672]
[1659309368930,13.6107,1681.1,1680.4,0.34425801]
[1659309368931,0.05,1681.0,1680.4,0.34425801]
[1659309369225,1.05,1681.2,1680.4,0.52024237]
[1659309369414,1.0,1681.2,1680.5,2.89804672]
[1659309369620,1.0,1681.2,1680.6,0.34425801]
[1659309369835,1.0,1681.2,1680.7,2.89804672]
[1659309370018,1.0,1681.2,1680.6,3.41828909]
[1659309370787,1.0,1681.2,1680.7,0.17598436]
[1659309370987,1.0,1681.2,1680.8,0.34425801]
[1659309371290,2.985,1681.4,1680.8,0.34425801]
[1659309371544,5.83304672,1681.4,1680.8,0.34425801]
[1659309371822,2.935,1681.4,1680.8,3.24230473]
[1659309372033,2.935,1681.4,1680.8,3.53953473]
[1659309372395,2.935,1681.4,1680.8,5.02572473]
[1659309373090,2.935,1681.4,1680.8,0.34425801]
[1659309373091,6.435,1681.4,1680.8,0.34425801]
[1659309373290,0.2,1681.1,1680.6,0.05]
[1659309373536,0.2,1681.1,1680.4,11.79699439]
[1659309373699,0.2,1681.1,1680.4,14.04694672]
[1659309374437,0.55,1681.2,1680.5,0.34425801]
[1659309374438,0.35,1681.2,1680.5,0.34425801]
[1659309374597,3.19804672,1681.2,1680.5,0.34425801]
[1659309374948,0.3,1681.2,1680.6,3.19534672]
[1659309375263,0.3,1681.3,1680.7,4.37830473]
[1659309375407,0.3,1681.3,1680.8,2.89804672]
[1659309375747,6.535,1681.4,1680.8,3.37129108]
[1659309376300,6.535,1681.4,1680.9,0.34425801]
[1659309376515,3.535,1681.4,1680.9,0.34425801]
[1659309376742,3.235,1681.4,1680.9,0.34425801]
[1659309376946,0.3,1681.4,1681.0,2.89804672]
[1659309377154,1.0,1681.6,1681.1,0.34425801]
[1659309377335,3.1184,1681.8,1681.2,2.89804672]
[1659309377534,0.05,1681.9,1681.2,5.81709672]
[1659309377708,2.81,1682.0,1681.3,2.89804672]
[1659309377910,2.76,1682.0,1681.3,3.24230473]
[1659309378149,2.76,1682.0,1681.4,2.89804672]
[1659309378150,12.72,1682.0,1681.4,2.89804672]
[1659309378305,12.72,1682.0,1681.3,3.24230473]
[1659309379254,0.2,1681.7,1681.2,0.05]
[1659309379554,2.89804672,1681.6,1681.0,0.05]
[1659309379759,2.89804672,1681.6,1680.8,11.5994]
[1659309379760,8.3961,1681.6,1680.8,11.5994]
[1659309380048,0.05,1681.6,1681.1,2.89804672]
[1659309380204,1.0,1682.0,1681.1,4.03404672]
[1659309380205,0.05,1681.8,1681.1,4.03404672]
[1659309380404,0.05,1681.8,1681.0,2.8111]
[1659309380405,2.89804672,1681.8,1681.0,2.8111]
[1659309380629,0.2,1681.6,1680.9,2.9543]
[1659309380846,3.09804672,1681.6,1680.9,2.9043]
[1659309381051,6.89804672,1681.6,1680.9,2.9043]
[1659309381547,3.39804672,1681.6,1680.9,2.9043]
[1659309381753,6.89804672,1681.6,1680.9,2.9043]
[1659309381907,3.39804672,1681.6,1680.9,2.9043]
[1659309382109,0.3,1681.6,1681.0,2.89804672]
[1659309382566,8.5887,1681.7,1681.0,2.89804672]
[1659309382567,8.2887,1681.7,1681.1,0.34425801]
[1659309382765,8.2387,1681.7,1681.2,2.89804672]
[1659309382931,2.8994,1681.8,1681.2,2.89804672]
[1659309383139,0.05,1681.9,1681.2,2.89804672]
[1659309383338,1.05,1682.0,1681.2,3.19522672]
[1659309383538,1.05,1682.0,1681.3,2.89804672]
[1659309383748,0.2,1681.6,1681.3,0.64293606]
[1659309383935,0.2,1681.4,1681.3,0.64293606]
[1659309384276,0.2,1681.3,1680.9,5.9621]
[1659309384572,0.05,1681.5,1681.0,2.89804672]
[1659309384778,0.55,1681.7,1680.9,5.80234672]
[1659309384949,3.39804672,1681.7,1680.9,5.80234672]
[1659309385129,0.2,1681.7,1681.0,2.89804672]
[1659309385330,3.0889,1681.8,1681.0,3.53951473]
[1659309385576,3.0389,1681.8,1681.1,2.89804672]
[1659309387536,2.89804672,1681.7,1681.0,0.39425801]
[1659309387827,3.19804672,1681.7,1681.0,0.34425801]
[1659309387981,0.2,1681.4,1680.9,0.05]
[1659309388182,0.0034872,1680.9,1680.7,0.05]
[1659309388405,0.0034872,1680.9,1680.5,8.1498]
[1659309390526,0.2,1680.8,1680.5,8.1498]
[1659309392825,0.2034872,1680.9,1680.5,8.1498]
[1659309392826,0.0034872,1680.9,1680.5,8.1498]
[1659309393032,0.2,1680.8,1680.5,8.1498]
[1659309393351,0.19788928,1680.8,1680.5,8.1498]
[1659309394532,0.0034872,1680.9,1680.5,11.04784672]
[1659309394853,0.0034872,1680.9,1680.5,11.10730712]
[1659309395011,0.0034872,1680.9,1680.6,0.2973]
[1659309395213,0.0034872,1680.9,1680.6,1.78383]
[1659309397615,0.19788928,1680.7,1680.3,2.9056]
[1659309397850,0.19788928,1680.7,1680.3,2.8556]
[1659309398610,0.19788928,1680.4,1680.3,2.8556]
[1659309399012,0.19788928,1680.2,1680.1,0.34425801]
[1659309399247,0.19788928,1680.2,1680.0,2.8493]
[1659309399610,0.19788928,1680.2,1679.9,8.2778]
[1659309400136,0.19788928,1680.0,1679.6,0.05]
[1659309400325,0.19788928,1680.0,1679.4,2.9117]
[1659309400760,3.395936,1680.0,1679.4,2.9117]
[1659309401054,0.3,1680.0,1679.5,2.89804672]
[1659309401212,0.35,1680.2,1679.5,2.89804672]
[1659309401417,0.35,1680.2,1679.5,3.07403108]
[1659309401418,0.3,1680.2,1679.5,3.07403108]
[1659309401617,7.6239,1680.3,1679.5,3.07403108]
[1659309401947,10.17194672,1680.3,1679.5,3.37403108]
[1659309402122,3.9739,1680.3,1679.6,3.24230473]
[1659309402319,3.9739,1680.3,1679.6,7.24230473]
[1659309402550,3.9739,1680.3,1679.7,0.17598436]
[1659309403249,3.9739,1680.3,1679.7,1.78465]
[1659309404262,2.9739,1680.3,1679.9,1.48717]
[1659309404468,53.0,1680.4,1680.0,0.29745]
[1659309404627,55.89804672,1680.4,1679.7,0.3474766]
[1659309404819,56.19804672,1680.4,1679.7,0.2974766]
[1659309405252,56.19804672,1680.4,1679.7,0.5949666]
[1659309405454,56.19804672,1680.4,1679.9,0.0594953]
[1659309407999,56.19804672,1680.4,1680.0,0.29744]
[1659309408188,56.19804672,1680.4,1680.0,0.3569299]
[1659309408394,55.89804672,1680.4,1680.0,0.3569299]
[1659309408574,55.89804672,1680.4,1680.1,0.29742]
[1659309408778,55.89804672,1680.4,1680.1,0.3569072]
[1659309409575,53.0,1680.4,1680.1,0.3569072]
[1659309409779,53.0,1680.4,1680.2,1.5461928]
[1659309410095,1.0,1680.7,1680.2,1.54830352]
[1659309410303,1.0,1680.7,1680.4,0.0594704]
[1659309410462,10.7999872,1680.9,1679.5,9.25562509]
[1659309410463,10.7499872,1680.9,1679.5,9.25562509]
[1659309410660,7.41975244,1680.6,1679.8,3.19804672]
[1659309410905,4.51137491,1680.5,1680.2,1.48691]
[1659309411059,2.90837753,1680.6,1680.2,1.78431]
[1659309411260,4.51137491,1680.5,1680.2,0.2974]
[1659309411486,3.5,1680.7,1680.0,0.3]
[1659309411688,3.5,1680.7,1680.1,2.89804672]
[1659309412084,6.2583,1680.8,1680.1,2.89804672]
[1659309412294,6.5583,1680.8,1680.1,2.89804672]
[1659309412923,6.5583,1680.8,1680.1,2.95753282]
[1659309412924,4.51137491,1680.5,1680.1,2.95753282]
[1659309413130,4.51137491,1680.6,1680.1,2.95753282]
[1659309413527,3.1083,1680.8,1680.1,2.95753282]
[1659309413765,3.0583,1680.8,1680.1,2.95753282]
[1659309414128,4.51137491,1680.5,1680.1,2.95753282]
[1659309414741,4.51137491,1680.5,1680.1,2.89804672]
[1659309415122,4.85608926,1680.5,1680.0,3.19804672]
[1659309415456,0.34471435,1680.5,1680.1,0.0594875]
[1659309415658,4.85608926,1680.5,1680.1,0.0594875]
[1659309415805,4.85608926,1680.5,1680.0,3.49547672]
[1659309416006,4.85608926,1680.5,1680.0,3.19804672]
[1659309416333,0.34471435,1680.5,1680.1,0.29742]
[1659309416501,0.34471435,1680.5,1680.1,1.78442]
[1659309418022,0.34471435,1680.5,1680.1,2.1413009]
[1659309418429,0.34471435,1680.5,1680.2,0.29741]
[1659309418918,0.34471435,1680.5,1680.2,0.3568935]
[1659309419325,4.51137491,1680.4,1680.1,0.0594908]
[1659309419912,0.34471435,1680.5,1680.1,0.0594908]
[1659309420164,4.51137491,1680.4,1680.1,0.0594908]
[1659309420395,4.51137491,1680.4,1680.1,0.3569208]
[1659309420604,0.34471435,1680.5,1680.1,0.6543388]
[1659309421601,0.34471435,1680.5,1680.1,0.59743]
[1659309421802,0.34471435,1680.5,1680.2,3.27121]
[1659309422398,0.34471435,1680.5,1680.2,3.5685968]
[1659309422601,0.34471435,1680.5,1680.3,0.29739]
[1659309422981,0.34471435,1680.5,1680.4,0.0594794]
[1659309423816,3.5,1680.7,1680.0,0.53246643]
[1659309423817,0.4467,1680.7,1680.0,0.53246643]
[1659309424013,2.8083,1680.8,1680.2,6.24387]
[1659309424366,2.8083,1680.8,1680.4,0.6567331]
[1659309424367,2.7583,1680.8,1680.4,0.6567331]
[1659309424530,2.7583,1680.8,1680.4,3.55477982]
[1659309424531,4.51137491,1680.7,1680.4,3.55477982]
[1659309425054,2.7583,1680.8,1680.4,4.98211672]
[1659309425241,0.0034872,1680.9,1680.5,0.0594703]
[1659309425443,4.51137491,1680.8,1680.5,0.0594703]
[1659309425645,4.51137491,1680.8,1680.6,0.29733]
[1659309426812,4.51137491,1680.8,1680.6,0.3568014]
[1659309427459,0.0034872,1680.9,1680.6,0.3568014]
[1659309427678,0.0034872,1680.9,1680.6,1.8434414]
[1659309427979,0.0034872,1680.9,1680.7,0.6540965]
[1659309428184,0.0034872,1680.9,1680.8,5.47253]
[1659309428539,0.0034872,1680.9,1680.8,5.77253]
[1659309428775,0.0034872,1680.9,1680.8,8.77253]
[1659309429482,0.0034872,1680.9,1680.8,11.67057672]
[1659309431785,0.00067195,1680.9,1680.8,11.67057672]
[1659309432361,0.00067195,1680.9,1680.8,11.67303519]
[1659309432779,0.00067195,1680.9,1680.8,12.14901955]
[1659309433586,0.00067195,1680.9,1680.8,9.34901955]
[1659309433797,0.00067195,1680.9,1680.8,6.19804672]
[1659309434569,0.00067195,1680.9,1680.8,9.17059672]
[1659309435145,0.00067195,1680.9,1680.8,9.17305519]
[1659309436035,0.00067195,1680.9,1680.8,6.17305519]
[1659309436178,0.05,1681.3,1680.9,7.98608]
[1659309436379,0.05,1681.5,1681.1,2.97154]
[1659309436584,8.0811,1682.0,1681.2,3.19804672]
[1659309436585,0.05,1681.7,1681.2,3.19804672]
[1659309436782,0.05,1681.9,1681.3,5.89804672]
[1659309437010,7.6848,1682.0,1681.4,4.68073672]
[1659309437207,7.97951435,1682.0,1681.5,1.48558]
[1659309437433,6.39804672,1681.9,1681.3,3.05]
[1659309437594,6.39804672,1681.8,1681.2,0.3]
[1659309437797,6.39804672,1681.8,1681.1,3.3]
[1659309438132,2.89804672,1681.8,1681.1,3.3]
[1659309438631,2.89804672,1681.8,1681.3,0.0594387]
[1659309438955,0.4464,1681.7,1681.1,0.05]
[1659309439160,0.4464,1681.7,1680.9,0.05]
[1659309439161,6.34444672,1681.7,1680.9,0.05]
[1659309439359,0.2,1681.6,1680.9,2.89804672]
[1659309439509,7.39444672,1681.7,1680.9,2.89804672]
[1659309439709,7.54444672,1681.7,1680.9,2.89804672]
[1659309440154,7.09804672,1681.7,1680.9,2.89804672]
[1659309440354,7.09804672,1681.7,1681.0,0.059457]
[1659309440665,7.09804656,1681.7,1681.0,0.059457]
[1659309440813,6.89804656,1681.7,1681.0,0.0594541]
[1659309441013,6.89804656,1681.7,1681.0,0.6539659]
[1659309441218,6.89804656,1681.7,1681.0,0.29726]
[1659309441526,6.89804656,1681.7,1681.3,0.29722]
[1659309441923,6.89804656,1681.7,1681.4,1.48597]
[1659309442126,6.89804656,1681.7,1681.4,1.78316]
[1659309442341,0.34471435,1681.6,1681.4,1.78316]
[1659309442761,0.34471435,1681.6,1681.5,0.0594404]
[1659309450396,0.34471435,1681.6,1681.4,0.29719]
[1659309450792,0.34471435,1681.6,1681.0,3.0224]
[1659309450793,0.2,1681.4,1681.0,0.05]
[1659309450982,2.7,1681.1,1680.9,0.76182678]
[1659309451185,3.34464672,1681.0,1680.5,0.05]
[1659309451497,3.34464672,1681.0,1680.6,2.97333]
[1659309451498,11.0555,1681.0,1680.6,2.97333]
[1659309451688,8.0555,1681.0,1680.6,3.0328022]
[1659309452887,8.0555,1681.0,1680.7,0.29734]
[1659309453182,8.0555,1681.0,1680.7,0.0594683]
[1659309454607,8.0555,1681.0,1680.8,1.78386]
[1659309454770,4.76281435,1681.2,1680.8,1.8433212]
[1659309454970,0.2,1681.1,1680.5,0.05]
[1659309455276,0.54471435,1681.1,1680.4,3.0]
[1659309455483,0.34471435,1681.1,1680.4,6.19804672]
[1659309455888,0.34471435,1681.1,1680.7,0.0594717]
[1659309457532,0.34471435,1681.1,1680.7,0.3568217]
[1659309457943,0.34471435,1681.1,1680.7,0.29735]
[1659309458103,0.34471435,1681.1,1680.8,0.29733]
[1659309458805,0.2,1680.8,1680.6,0.3568449]
[1659309459034,0.39471435,1681.1,1680.6,0.3568449]
[1659309459243,3.88936107,1681.1,1680.6,0.0594749]
[1659309459602,3.88936107,1681.1,1680.7,0.29736]
[1659309460446,3.88936107,1681.1,1680.7,0.3568325]
[1659309460611,0.2,1680.6,1680.4,0.05]
[1659309460807,0.2,1680.6,1680.1,0.5973586]
[1659309461042,0.2,1680.6,1680.3,0.0594851]
[1659309461651,0.19796876,1680.6,1680.3,0.3568951]
[1659309461943,0.19796876,1680.6,1680.4,0.059481]
[1659309462550,6.3134,1680.9,1680.4,0.059481]
[1659309462551,5.96136876,1680.9,1680.4,0.059481]
[1659309462708,8.71484672,1680.9,1680.4,0.059481]
[1659309463606,2.89804672,1680.8,1680.3,0.059484]
[1659309463807,9.61174672,1680.8,1680.1,0.05]
[1659309464033,9.61174672,1680.8,1679.7,3.6675]
[1659309464034,2.89804672,1680.7,1680.0,0.05]
[1659309464308,0.79141435,1680.6,1679.9,0.05]
[1659309464508,0.79141435,1680.6,1679.7,3.6675]
[1659309464509,4.38564672,1680.5,1679.8,0.1095017]
[1659309464728,2.89804672,1680.5,1679.7,0.497]
[1659309465025,0.34471435,1680.4,1679.7,2.89804672]
[1659309466068,0.34471435,1680.4,1679.7,2.95754502]
[1659309466443,0.34471435,1680.4,1679.7,3.25754502]
[1659309466644,0.34471435,1680.4,1679.8,3.0]
[1659309466849,0.34471435,1680.4,1679.8,3.09306738]
[1659309467592,0.34471435,1680.4,1680.0,0.0594857]
[1659309468383,0.34471435,1680.4,1680.1,0.29743]
[1659309468604,0.34471435,1680.4,1680.1,0.3569184]
[1659309469085,0.34471435,1680.4,1680.1,2.1413552]
[1659309469281,0.34471435,1680.4,1680.1,1.8439457]
[1659309469588,7.267,1680.8,1680.1,1.8439457]
[1659309469589,11.89639269,1681.8,1680.9,0.4]
[1659309469789,11.1537,1682.1,1681.0,4.48164672]
[1659309469943,11.1537,1682.1,1681.1,5.94804672]
[1659309470146,11.1537,1682.1,1681.2,2.89804672]